bitfinex/quotes_BTCUSD_20230831
["timestamp","ask_amount","ask_price","bid_price","bid_amount"]
[1693517008582,0.06947318,25950.0,25949.0,0.81318578]
[1693517008784,0.10547318,25950.0,25949.0,0.81418578]
[1693517009211,0.04947318,25950.0,25949.0,0.81418578]
[1693517009579,0.03313496,25950.0,25949.0,0.40718578]
[1693517009746,0.08013496,25950.0,25949.0,0.40818578]
[1693517009952,0.02413496,25950.0,25949.0,0.40818578]
[1693517010131,0.08013496,25950.0,25949.0,0.40818578]
[1693517010744,0.08013496,25950.0,25949.0,0.021099]
[1693517011696,0.06913496,25950.0,25949.0,0.020099]
[1693517011825,0.02413496,25950.0,25949.0,0.021099]
[1693517012031,0.04413496,25950.0,25949.0,0.021099]
[1693517012228,0.06913496,25950.0,25949.0,0.020099]
[1693517012430,0.03313496,25950.0,25949.0,0.020099]
[1693517012636,0.08013496,25950.0,25949.0,0.021099]
[1693517012840,0.18013496,25950.0,25949.0,0.021099]
[1693517013689,0.58723524,25950.0,25949.0,0.021099]
[1693517014411,0.56722174,25950.0,25949.0,0.021099]
[1693517014612,0.55622174,25950.0,25949.0,0.020099]
[1693517014737,0.52022174,25950.0,25949.0,0.020099]
[1693517014961,0.55622174,25950.0,25949.0,0.020099]
[1693517015164,0.20485077,25950.0,25949.0,0.020099]
[1693517015823,0.18485077,25950.0,25949.0,0.020099]
[1693517016034,0.20485077,25950.0,25949.0,0.020099]
[1693517021879,0.12485077,25950.0,25949.0,0.020099]
[1693517022092,0.04885077,25950.0,25949.0,0.020099]
[1693517022293,0.04885077,25950.0,25949.0,0.40718578]
[1693517022514,0.04885077,25950.0,25949.0,0.40818578]
[1693517022717,0.08485077,25950.0,25949.0,0.40818578]
[1693517023121,0.08485077,25950.0,25949.0,0.53071216]
[1693517023318,0.08485077,25950.0,25949.0,0.53101216]
[1693517023518,0.04885077,25950.0,25949.0,0.46033216]
[1693517023719,0.01285077,25950.0,25949.0,0.45933216]
[1693517023902,0.04885077,25950.0,25949.0,0.52693216]
[1693517024122,0.04885077,25950.0,25949.0,0.47772578]
[1693517024323,0.04885077,25950.0,25949.0,0.48900578]
[1693517024482,0.01285077,25950.0,25949.0,0.47414578]
[1693517024729,0.08485077,25950.0,25949.0,0.47304578]
[1693517024918,0.04885077,25950.0,25949.0,0.40818578]
[1693517025157,0.01285077,25950.0,25949.0,0.40718578]
[1693517025339,0.04885077,25950.0,25949.0,0.40718578]
[1693517025685,0.08485077,25950.0,25949.0,0.40818578]
[1693517026805,0.04885077,25950.0,25949.0,0.40718578]
[1693517026984,0.04885077,25950.0,25949.0,0.51946616]
[1693517027143,0.08485077,25950.0,25949.0,0.60086578]
[1693517027525,0.04885077,25950.0,25949.0,0.59986578]
[1693517027808,0.08485077,25950.0,25949.0,0.60086578]
[1693517028971,0.08485077,25950.0,25949.0,1.09056578]
[1693517029171,0.08485077,25950.0,25949.0,1.09218578]
[1693517029417,0.08485077,25950.0,25949.0,1.08564578]
[1693517029565,0.08485077,25950.0,25949.0,1.08054578]
[1693517029782,0.08485077,25950.0,25949.0,1.07850578]
[1693517029983,0.08485077,25950.0,25949.0,1.07712578]
[1693517030192,0.08485077,25950.0,25949.0,1.07652578]
[1693517030387,0.08485077,25950.0,25949.0,1.07634578]
[1693517030733,0.08485077,25950.0,25949.0,1.07658578]
[1693517030913,0.08485077,25950.0,25949.0,1.07568578]
[1693517031113,0.08485077,25950.0,25949.0,1.07556578]
[1693517031429,0.04,25954.0,25950.0,0.06514923]
[1693517031637,0.04,25952.0,25951.0,0.38708678]
[1693517032378,0.04,25952.0,25950.0,0.31594923]
[1693517032500,0.04,25951.0,25950.0,0.70303601]
[1693517033400,0.04,25951.0,25950.0,0.70903601]
[1693517033867,0.04,25951.0,25950.0,0.70603601]
[1693517034277,0.076,25951.0,25950.0,0.91953861]
[1693517034576,0.076,25951.0,25950.0,0.32294923]
[1693517035186,0.076,25951.0,25950.0,0.31994923]
[1693517035527,0.076,25951.0,25950.0,0.07214923]
[1693517035528,1.269024,25951.0,25950.0,0.07214923]
[1693517035966,1.847036,25951.0,25950.0,0.07214923]
[1693517037881,1.269024,25951.0,25950.0,0.07214923]
[1693517038085,0.113,25951.0,25950.0,0.07214923]
[1693517038758,0.691012,25951.0,25950.0,0.07214923]
[1693517039064,0.113,25951.0,25950.0,0.07214923]
[1693517040673,0.33868603,25951.0,25950.0,0.07214923]
[1693517042530,0.41893611,25951.0,25950.0,0.07214923]
[1693517042861,0.41893611,25951.0,25950.0,0.45923601]
[1693517043069,0.41893611,25951.0,25950.0,0.07214923]
[1693517043695,0.688854,25951.0,25950.0,0.07214923]
[1693517044240,1.266866,25951.0,25950.0,0.07214923]
[1693517047700,0.04,25947.0,25946.0,0.020099]
[1693517047911,3.21956742,25947.0,25946.0,0.020099]
[1693517048111,0.70017715,25947.0,25946.0,0.020099]
[1693517048318,0.61257018,25947.0,25946.0,0.49400578]
[1693517048522,0.57853957,25947.0,25946.0,1.62869936]
[1693517048731,0.30593611,25947.0,25946.0,1.05057636]
[1693517048924,0.34193611,25947.0,25946.0,1.05057636]
[1693517049132,0.35193611,25947.0,25946.0,1.05157636]
[1693517049329,0.31593611,25947.0,25946.0,1.05157636]
[1693517049539,0.35193611,25947.0,25946.0,1.56443178]
[1693517049739,0.34193611,25947.0,25946.0,1.56343178]
[1693517049968,0.31593611,25947.0,25946.0,1.56443178]
[1693517050389,0.01,25947.0,25946.0,0.98630878]
[1693517050589,0.01,25947.0,25946.0,2.21701478]
[1693517050790,0.31593611,25947.0,25946.0,2.22847478]
[1693517050992,0.01,25947.0,25946.0,2.56548186]
[1693517051207,0.31593611,25947.0,25946.0,2.55756186]
[1693517051414,0.31593611,25947.0,25946.0,2.55608186]
[1693517051415,0.036,25947.0,25946.0,2.55608186]
[1693517051609,0.30893611,25947.0,25946.0,2.56096186]
[1693517051805,0.30893611,25947.0,25946.0,1.97827886]
[1693517052011,0.32193611,25947.0,25946.0,1.97189886]
[1693517052254,0.31893611,25947.0,25946.0,1.90155886]
[1693517052388,0.32293611,25947.0,25946.0,1.90655886]
[1693517052597,0.32293611,25947.0,25946.0,0.99130878]
[1693517052804,0.30593611,25947.0,25946.0,0.40718578]
[1693517053028,0.30593611,25947.0,25946.0,0.59987578]
[1693517053229,0.31093611,25947.0,25946.0,0.41418578]
[1693517053859,0.005,25947.0,25946.0,0.41418578]
[1693517054411,0.53303642,25947.0,25946.0,0.98530878]
[1693517054611,0.53304504,25947.0,25946.0,0.40718578]
[1693517054818,0.24410893,25947.0,25946.0,0.026099]
[1693517055018,0.53704504,25947.0,25946.0,0.025099]
[1693517055204,0.22710893,25947.0,25946.0,0.022099]
[1693517055447,0.23210893,25947.0,25946.0,0.027099]
[1693517055623,0.23110893,25947.0,25946.0,0.025099]
[1693517055824,0.24410893,25947.0,25946.0,0.026099]
[1693517056028,0.55004504,25947.0,25946.0,0.026099]
[1693517056373,0.50462272,25947.0,25946.0,0.026099]
[1693517056622,1.30983265,25947.0,25946.0,0.026099]
[1693517057239,1.14787505,25947.0,25946.0,0.026099]
[1693517057792,1.13214604,25947.0,25946.0,0.031099]
[1693517057992,1.15187505,25947.0,25946.0,0.031099]
[1693517058196,2.30807705,25947.0,25946.0,0.031099]
[1693517058581,2.08096812,25947.0,25946.0,0.031099]
[1693517059030,2.4680549,25947.0,25946.0,0.031099]
[1693517059238,2.74065836,25947.0,25946.0,0.031099]
[1693517059435,1.77547058,25947.0,25946.0,0.031099]
[1693517059678,1.76747058,25947.0,25946.0,0.021099]
[1693517060537,1.49486712,25947.0,25946.0,0.021099]
[1693517060901,1.51786712,25947.0,25946.0,0.020099]
[1693517061239,1.55386712,25947.0,25946.0,0.020099]
[1693517061417,1.79047058,25947.0,25946.0,0.020099]
[1693517061620,1.55386712,25947.0,25946.0,0.020099]
[1693517062182,1.79047058,25947.0,25946.0,0.020099]
[1693517062429,1.82647058,25947.0,25946.0,0.021099]
[1693517063685,1.55386712,25947.0,25946.0,0.021099]
[1693517063884,1.48186712,25947.0,25946.0,0.020099]
[1693517064330,1.51786712,25947.0,25946.0,0.020099]
[1693517064972,1.48186712,25947.0,25946.0,0.020099]
[1693517065187,1.54086712,25947.0,25946.0,0.021099]
[1693517065542,1.48186712,25947.0,25946.0,0.020099]
[1693517065943,1.51786712,25947.0,25946.0,0.020099]
[1693517066147,1.52786712,25947.0,25946.0,0.021099]
[1693517066380,3.06132362,25947.0,25946.0,0.021099]
[1693517066805,2.76565836,25947.0,25946.0,0.021099]
[1693517067171,2.76565836,25947.0,25946.0,0.020099]
[1693517067172,3.14565836,25947.0,25946.0,0.020099]
[1693517067371,3.68492366,25947.0,25946.0,0.020099]
[1693517067617,3.72692366,25947.0,25940.0,0.0001]
[1693517067819,0.13778898,25941.0,25940.0,0.0001]
[1693517067995,0.87085869,25941.0,25940.0,0.0001]
[1693517068194,0.71602398,25941.0,25940.0,0.0001]
[1693517068424,0.71602398,25941.0,25938.0,0.207]
[1693517068751,0.09242382,25941.0,25938.0,2.42402478]
[1693517068947,0.09242382,25941.0,25938.0,0.227]
[1693517069152,0.16342382,25941.0,25938.0,0.227]
[1693517069449,0.16342382,25941.0,25938.0,1.383594]
[1693517069789,0.16342382,25941.0,25939.0,0.38708678]
[1693517069958,0.16342382,25941.0,25939.0,1.54362978]
[1693517070363,0.12742382,25941.0,25939.0,1.54362978]
[1693517070767,0.11742382,25941.0,25939.0,1.54362978]
[1693517071095,0.09542382,25941.0,25939.0,0.96535078]
[1693517071305,0.13142382,25941.0,25939.0,0.96535078]
[1693517071523,0.09242382,25941.0,25939.0,0.96535078]
[1693517071728,0.0017,25941.0,25939.0,0.96535078]
[1693517071905,0.0377,25941.0,25939.0,1.54362978]
[1693517072108,0.2268128,25942.0,25939.0,0.96635078]
[1693517072315,0.09072382,25940.0,25939.0,0.96635078]
[1693517072513,0.2268128,25940.0,25939.0,0.96635078]
[1693517072716,0.2268128,25940.0,25939.0,0.38708678]
[1693517072717,0.13608898,25940.0,25939.0,0.38708678]
[1693517072922,0.31754096,25940.0,25939.0,0.38708678]
[1693517073080,0.13608898,25940.0,25938.0,0.207]
[1693517073278,0.09068653,25939.0,25937.0,0.676619]
[1693517073510,0.31278957,25939.0,25936.0,0.00022009]
[1693517073682,0.09068653,25938.0,25936.0,0.00022009]
[1693517074296,0.09066114,25938.0,25936.0,0.00022009]
[1693517074699,0.02142901,25937.0,25936.0,0.00022009]
[1693517075454,0.11209015,25937.0,25936.0,0.00022009]
[1693517077047,0.14809015,25937.0,25936.0,0.00022009]
[1693517077366,0.10136114,25937.0,25936.0,0.00022009]
[1693517077579,0.15709015,25937.0,25936.0,0.00022009]
[1693517077782,0.14809015,25937.0,25936.0,0.00022009]
[1693517078192,0.15009015,25937.0,25936.0,0.00122009]
[1693517078327,0.25008187,25937.0,25936.0,0.00122009]
[1693517078539,0.28408187,25937.0,25936.0,0.00022009]
[1693517078744,0.41311657,25937.0,25936.0,0.00122009]
[1693517078971,1.35206873,25937.0,25936.0,0.00122009]
[1693517079180,2.01075951,25937.0,25936.0,0.00122009]
[1693517079375,1.78410664,25937.0,25936.0,0.00122009]
[1693517079643,2.01075951,25937.0,25936.0,0.00122009]
[1693517079770,1.82943722,25937.0,25936.0,0.00122009]
[1693517079975,1.82943722,25937.0,25936.0,0.00022009]
[1693517079976,3.50682207,25937.0,25936.0,0.00022009]
[1693517080204,4.36247522,25937.0,25936.0,0.00022009]
[1693517080399,0.58572901,25936.0,25935.0,0.01993626]
[1693517080703,3.95983144,25936.0,25935.0,0.01993626]
[1693517081361,3.95983144,25936.0,25935.0,3.626e-05]
[1693517081546,4.30865458,25936.0,25935.0,3.626e-05]
[1693517081864,4.34465458,25936.0,25935.0,3.626e-05]
[1693517082023,4.30865458,25936.0,25935.0,3.626e-05]
[1693517082224,4.34710561,25936.0,25935.0,3.626e-05]
[1693517082464,4.38310561,25936.0,25935.0,3.626e-05]
[1693517083239,5.42582169,25936.0,25935.0,3.626e-05]
[1693517083609,3.41993901,25929.0,25923.0,0.020099]
[1693517083888,3.4443285,25929.0,25923.0,0.020099]
[1693517084086,3.58949379,25929.0,25923.0,0.020099]
[1693517084261,3.75466528,25929.0,25923.0,0.020099]
[1693517084478,3.73466528,25929.0,25923.0,0.020099]
[1693517084824,0.28226987,25929.0,25925.0,0.578573]
[1693517085026,0.72526832,25929.0,25924.0,0.787495]
[1693517085266,0.72526832,25929.0,25924.0,0.2089]
[1693517085267,2.2703591,25929.0,25924.0,0.2089]
[1693517085459,0.67193101,25929.0,25924.0,0.2089]
[1693517085589,0.76226832,25929.0,25924.0,0.787503]
[1693517085789,1.23975032,25929.0,25924.0,0.578602]
[1693517086037,1.63751979,25929.0,25923.0,0.244299]
[1693517086235,2.2703591,25929.0,25923.0,0.244299]
[1693517086439,2.18002179,25929.0,25923.0,0.244299]
[1693517087190,2.2703591,25929.0,25923.0,0.244299]
[1693517087321,2.3063591,25929.0,25923.0,0.244299]
[1693517087528,2.65763327,25929.0,25923.0,0.244299]
[1693517087724,2.69263327,25929.0,25923.0,0.244299]
[1693517088433,2.60229596,25929.0,25923.0,0.244299]
[1693517089707,0.67093101,25929.0,25923.0,0.244299]
[1693517089927,6e-05,25934.0,25933.0,0.13857099]
[1693517090118,0.04112795,25941.0,25938.0,0.406]
[1693517090318,0.04112795,25941.0,25939.0,1.41196578]
[1693517090565,0.31566664,25940.0,25939.0,1.156558]
[1693517090773,0.31566664,25940.0,25936.0,0.57834]
[1693517090774,0.22549543,25940.0,25936.0,0.57834]
[1693517090984,0.09019817,25940.0,25937.0,1.156621]
[1693517091189,0.09019817,25940.0,25937.0,1.226161]
[1693517091390,0.09019817,25940.0,25938.0,0.07234]
[1693517091591,0.09019817,25940.0,25939.0,0.1228961]
[1693517091807,0.10519817,25941.0,25939.0,0.1228961]
[1693517091987,0.015,25941.0,25939.0,0.7011721]
[1693517092189,0.015,25941.0,25939.0,0.7755121]
[1693517092399,0.015,25941.0,25940.0,0.0675]
[1693517092609,0.015,25941.0,25940.0,1.84743247]
[1693517092818,0.015,25941.0,25940.0,1.84641247]
[1693517093019,0.015,25941.0,25940.0,1.84833247]
[1693517093221,0.015,25941.0,25940.0,1.84809247]
[1693517093427,0.015,25941.0,25940.0,0.10008195]
[1693517093631,0.015,25941.0,25940.0,0.026]
[1693517093632,0.018,25941.0,25940.0,0.026]
[1693517093845,0.24823311,25941.0,25940.0,0.026]
[1693517094053,0.24523311,25941.0,25937.0,0.771077]
[1693517094268,0.015,25939.0,25937.0,0.771077]
[1693517094645,0.015,25939.0,25937.0,0.840317]
[1693517094847,0.015,25939.0,25937.0,0.843797]
[1693517095048,0.015,25939.0,25937.0,1.420621]
[1693517095216,0.015,25939.0,25937.0,1.418461]
[1693517095410,0.015,25939.0,25937.0,1.417501]
[1693517095696,0.015,25939.0,25937.0,1.419481]
[1693517095847,0.015,25939.0,25937.0,1.417861]
[1693517096058,0.015,25939.0,25937.0,1.417561]
[1693517096215,0.015,25939.0,25937.0,1.415461]
[1693517096440,0.34058278,25942.0,25938.0,0.59146598]
[1693517096645,0.22558278,25942.0,25939.0,0.583275]
[1693517096847,0.24058278,25943.0,25940.0,0.49334678]
[1693517097053,0.24058278,25943.0,25941.0,1.15647]
[1693517097054,0.26058278,25943.0,25941.0,1.15647]
[1693517097292,0.30058278,25943.0,25941.0,1.63013678]
[1693517097495,0.30058278,25943.0,25942.0,0.06996]
[1693517097720,0.30058278,25943.0,25942.0,0.0678]
[1693517097919,0.30058278,25943.0,25942.0,0.06648]
[1693517098105,0.30058278,25943.0,25942.0,0.23457354]
[1693517098281,0.34058278,25943.0,25942.0,1.21103232]
[1693517098457,0.28634967,25943.0,25942.0,1.05145878]
[1693517098668,0.20634967,25943.0,25942.0,1.05247878]
[1693517098860,0.28634967,25943.0,25942.0,1.04761878]
[1693517099064,0.28634967,25943.0,25942.0,1.04407878]
[1693517099283,0.20634967,25943.0,25942.0,1.04287878]
[1693517099487,0.17534967,25943.0,25942.0,1.04959878]
[1693517099687,0.17534967,25943.0,25942.0,1.05025878]
[1693517099891,0.17545841,25943.0,25942.0,1.03999878]
[1693517100095,0.09031201,25943.0,25942.0,1.84004656]
[1693517100308,0.09031201,25943.0,25942.0,2.81925856]
[1693517100309,0.09431201,25943.0,25942.0,2.81925856]
[1693517100514,0.13031201,25943.0,25942.0,2.98137856]
[1693517100713,0.09431201,25943.0,25942.0,2.97737856]
[1693517100915,0.12631201,25943.0,25942.0,2.84739856]
[1693517101123,0.036,25943.0,25942.0,3.14277856]
[1693517101331,0.004,25943.0,25942.0,3.13739856]
[1693517101696,0.12631201,25943.0,25942.0,3.14045856]
[1693517101913,0.09431201,25943.0,25942.0,3.14303856]
[1693517102112,0.004,25943.0,25942.0,3.13437856]
[1693517102286,0.004,25943.0,25942.0,3.13961856]
[1693517102485,0.09031201,25944.0,25942.0,3.13961856]
[1693517102486,0.22577042,25944.0,25942.0,3.13949856]
[1693517102698,0.09031201,25944.0,25943.0,2.12165678]
[1693517102903,0.09031201,25944.0,25943.0,2.40591374]
[1693517103031,0.22577042,25944.0,25943.0,2.40699374]
[1693517103235,0.22577042,25944.0,25943.0,2.40663374]
[1693517103476,0.22577042,25944.0,25943.0,2.40639374]
[1693517103477,0.13545841,25944.0,25943.0,2.40639374]
[1693517103677,0.16845841,25944.0,25943.0,2.40729374]
[1693517103884,0.22686122,25944.0,25943.0,2.40621374]
[1693517104095,0.22686122,25944.0,25943.0,2.40531374]
[1693517104324,0.25786122,25944.0,25943.0,2.40831374]
[1693517104527,0.25786122,25944.0,25943.0,2.40687374]
[1693517104707,0.16745841,25944.0,25943.0,2.40537374]
[1693517104901,0.1224134,25944.0,25943.0,2.40843374]
[1693517105108,0.1224134,25944.0,25943.0,2.40759374]
[1693517105310,0.1224134,25944.0,25943.0,2.40903374]
[1693517105514,0.1224134,25944.0,25943.0,2.40879374]
[1693517105716,0.1224134,25944.0,25943.0,2.82249374]
[1693517105917,0.033,25944.0,25943.0,3.28885374]
[1693517106095,0.033,25944.0,25943.0,3.29353374]
[1693517106318,0.033,25944.0,25943.0,3.28489374]
[1693517106547,0.001,25944.0,25943.0,3.14905374]
[1693517106747,0.019,25944.0,25943.0,3.13979374]
[1693517107082,0.002,25944.0,25943.0,3.13277374]
[1693517107221,0.002,25944.0,25943.0,3.13337374]
[1693517107426,0.001,25944.0,25943.0,3.12977374]
[1693517107650,0.003,25944.0,25943.0,3.15957374]
[1693517107853,0.003,25944.0,25943.0,3.41517374]
[1693517108062,0.22576402,25951.0,25950.0,0.005]
[1693517108063,0.22587181,25951.0,25950.0,0.005]
[1693517108220,0.22587181,25952.0,25951.0,0.005]
[1693517108427,0.0904134,25952.0,25951.0,2.60761856]
[1693517108667,0.0904134,25952.0,25951.0,2.70715856]
[1693517108868,0.22587181,25953.0,25951.0,2.90143856]
[1693517109082,0.02,25954.0,25952.0,0.38708678]
[1693517109300,0.09044914,25953.0,25952.0,0.47876678]
[1693517109457,0.22612285,25954.0,25953.0,0.07848]
[1693517109665,0.09044914,25954.0,25953.0,0.38708678]
[1693517109862,0.09044914,25954.0,25953.0,0.47582678]
[1693517110089,0.22612285,25955.0,25953.0,0.47594678]
[1693517110392,0.036,25954.0,25953.0,1.828361]
[1693517110625,0.09044914,25956.0,25955.0,0.411]
[1693517110835,0.09044914,25957.0,25956.0,0.005]
[1693517111043,0.22612285,25958.0,25956.0,1.460802]
[1693517111246,0.22612285,25958.0,25956.0,2.21573996]
[1693517111422,0.09044914,25957.0,25956.0,2.32715996]
[1693517111683,0.09044914,25958.0,25956.0,2.21573996]
[1693517111881,0.09044914,25959.0,25956.0,2.33123996]
[1693517112086,0.09044914,25960.0,25959.0,0.411]
[1693517112299,0.09044914,25961.0,25960.0,0.005]
[1693517112500,0.11034914,25962.0,25960.0,2.25371078]
[1693517112673,0.0199,25962.0,25961.0,1.01062678]
[1693517112918,0.0199,25962.0,25961.0,3.08244481]
[1693517113116,0.09044914,25966.0,25965.0,0.005]
[1693517113327,0.09044914,25966.0,25965.0,3.10292783]
[1693517113440,0.09044914,25967.0,25965.0,3.45244093]
[1693517113645,0.09044914,25967.0,25966.0,0.706]
[1693517113844,0.09044914,25967.0,25966.0,3.12684078]
[1693517114050,0.24602285,25968.0,25966.0,3.13704078]
[1693517114353,0.11034914,25968.0,25967.0,0.48740678]
[1693517114561,0.11034914,25968.0,25967.0,2.70143174]
[1693517114758,0.0199,25968.0,25967.0,2.69759174]
[1693517115002,0.0199,25968.0,25967.0,2.69645174]
[1693517115206,0.0199,25968.0,25967.0,2.69891174]
[1693517115408,0.0199,25968.0,25967.0,2.69639174]
[1693517115598,0.0199,25968.0,25967.0,2.69681174]
[1693517115820,0.0199,25968.0,25967.0,2.70443174]
[1693517116169,0.0199,25968.0,25967.0,3.13029174]
[1693517116303,0.0299,25968.0,25967.0,3.27873174]
[1693517116502,0.0669,25968.0,25967.0,3.30501174]
[1693517116712,0.0669,25968.0,25967.0,3.30993174]
[1693517116713,0.0299,25968.0,25967.0,3.30993174]
[1693517116919,0.0669,25968.0,25967.0,3.30237174]
[1693517117105,0.0669,25968.0,25967.0,3.29661174]
[1693517117306,0.0299,25968.0,25967.0,3.30609174]
[1693517117524,0.0539,25968.0,25967.0,3.30329174]
[1693517117789,0.0539,25968.0,25967.0,3.29789174]
[1693517117997,0.05369686,25968.0,25967.0,3.38257174]
[1693517118146,0.05369686,25968.0,25967.0,3.42582277]
[1693517118147,0.04369686,25968.0,25967.0,3.42582277]
[1693517118350,0.04369686,25968.0,25967.0,3.43466277]
[1693517118702,0.04369686,25968.0,25967.0,3.43862277]
[1693517118903,0.04369686,25968.0,25967.0,3.5039395]
[1693517119105,0.02169686,25968.0,25967.0,3.4144995]
[1693517119305,0.02169686,25968.0,25967.0,3.34717174]
[1693517119507,0.03269686,25968.0,25967.0,3.35057174]
[1693517119779,0.02169686,25968.0,25967.0,3.35401174]
[1693517119997,0.02169686,25968.0,25967.0,3.35025174]
[1693517120136,0.02169686,25968.0,25967.0,3.35745174]
[1693517120341,0.02169686,25968.0,25967.0,3.42890277]
[1693517120560,0.02169686,25968.0,25967.0,3.44662277]
[1693517120763,0.02169686,25968.0,25967.0,3.34913174]
[1693517120963,0.02169686,25968.0,25967.0,3.31701174]
[1693517121190,0.02169686,25968.0,25967.0,3.34221174]
[1693517121388,0.02169686,25968.0,25967.0,3.35277174]
[1693517121587,0.02169686,25968.0,25967.0,3.34989174]
[1693517121787,0.02169686,25968.0,25967.0,3.35685174]
[1693517122120,0.02169686,25968.0,25967.0,3.35349174]
[1693517122318,0.02169686,25968.0,25967.0,3.35205174]
[1693517122514,0.02169686,25968.0,25967.0,3.35469174]
[1693517122715,0.02169686,25968.0,25967.0,3.34989174]
[1693517122965,0.02169686,25968.0,25967.0,3.34629174]
[1693517123147,0.02169686,25968.0,25967.0,3.34977174]
[1693517123304,0.02169686,25968.0,25967.0,3.36645174]
[1693517123504,0.02169686,25968.0,25967.0,3.37485174]
[1693517123726,0.02169686,25968.0,25967.0,3.39929174]
[1693517124049,0.02169686,25968.0,25967.0,3.38885174]
[1693517124251,0.02169686,25968.0,25967.0,3.37817174]
[1693517124489,0.02169686,25968.0,25967.0,3.37793174]
[1693517124667,0.02169686,25968.0,25967.0,3.40821063]
[1693517124893,0.02169686,25968.0,25967.0,3.40797063]
[1693517125021,0.02169686,25968.0,25967.0,3.40545063]
[1693517125231,0.02169686,25968.0,25967.0,3.39561063]
[1693517125443,0.02169686,25968.0,25967.0,3.37357063]
[1693517125628,0.02169686,25968.0,25967.0,3.37381063]
[1693517125811,0.02169686,25968.0,25967.0,3.37321063]
[1693517126010,0.02169686,25968.0,25967.0,3.35929063]
[1693517126211,0.02169686,25968.0,25967.0,3.35761063]
[1693517126410,0.02169686,25968.0,25967.0,3.35773063]
[1693517126613,0.19653157,25968.0,25967.0,1.464432]
[1693517126850,0.04169686,25968.0,25967.0,1.194312]
[1693517127456,0.12169686,25968.0,25967.0,1.194312]
[1693517127904,0.14169686,25968.0,25967.0,1.194312]
[1693517128652,0.02169686,25968.0,25967.0,2.22841478]
[1693517128852,0.02169686,25968.0,25967.0,2.44309478]
[1693517129142,0.02169686,25968.0,25967.0,2.42113478]
[1693517129323,0.02169686,25968.0,25967.0,2.73733478]
[1693517129580,0.02169686,25968.0,25967.0,2.56609478]
[1693517129780,0.02169686,25968.0,25967.0,2.56033478]
[1693517129990,0.02169686,25968.0,25967.0,1.564872]
[1693517130158,0.04169686,25968.0,25967.0,1.494312]
[1693517130548,0.04169686,25968.0,25967.0,1.709021]
[1693517130744,0.04169686,25968.0,25967.0,2.286677]
[1693517130883,0.14169686,25968.0,25967.0,1.986677]
[1693517131294,0.14169686,25968.0,25967.0,0.616656]
[1693517133208,0.14169686,25968.0,25967.0,0.0092417]
[1693517133409,0.14169686,25968.0,25967.0,0.0787817]
[1693517133649,0.14169686,25968.0,25967.0,0.6517577]
[1693517133789,0.14169686,25968.0,25967.0,1.1645537]
[1693517133992,0.14169686,25968.0,25967.0,0.0092417]
[1693517133993,0.18169686,25968.0,25967.0,0.0092417]
[1693517134996,0.17969686,25968.0,25967.0,0.002]
[1693517135202,0.17969686,25968.0,25967.0,0.003]
[1693517135404,0.20969686,25968.0,25967.0,0.003]
[1693517135616,0.24669686,25968.0,25967.0,0.583656]
[1693517135897,0.24669686,25968.0,25967.0,0.006]
[1693517137074,0.24642168,25968.0,25967.0,0.006]
[1693517138892,0.20642168,25968.0,25967.0,0.006]
[1693517139093,0.24642168,25968.0,25967.0,0.006]
[1693517142405,2.54432263,25968.0,25967.0,0.006]
[1693517142607,2.54432263,25968.0,25967.0,0.00030791]
[1693517142948,2.7080474,25968.0,25967.0,0.00030791]
[1693517143485,2.61759826,25968.0,25967.0,0.00030791]
[1693517144108,2.7080474,25968.0,25967.0,0.00030791]
[1693517144506,2.75327197,25968.0,25967.0,0.00030791]
[1693517145060,2.75327197,25968.0,25958.0,0.577843]
[1693517145061,0.12,25959.0,25958.0,0.577843]
[1693517145208,0.27483471,25959.0,25958.0,0.577843]
[1693517145638,0.12,25959.0,25958.0,0.577843]
[1693517146057,0.1,25958.0,25957.0,1.222812]
[1693517146400,0.1,25958.0,25957.0,1.84281878]
[1693517146599,0.1,25958.0,25957.0,2.10393878]
[1693517146888,0.1,25958.0,25957.0,1.96965878]
[1693517147088,0.1,25958.0,25957.0,2.85159766]
[1693517147287,0.101,25958.0,25957.0,2.86225766]
[1693517147788,0.105,25958.0,25957.0,2.88765766]
[1693517147949,0.105,25958.0,25957.0,2.88723766]
[1693517148168,0.105,25958.0,25957.0,2.88711766]
[1693517148548,0.105,25958.0,25957.0,2.88681766]
[1693517148771,0.105,25958.0,25957.0,2.88639766]
[1693517149011,0.105,25958.0,25957.0,2.88519766]
[1693517149199,0.105,25958.0,25957.0,2.88477766]
[1693517149331,0.025,25958.0,25957.0,2.88141766]
[1693517149572,0.105,25958.0,25957.0,2.88105766]
[1693517149776,0.105,25958.0,25957.0,2.88129766]
[1693517149975,0.105,25958.0,25957.0,2.89029766]
[1693517150175,0.105,25958.0,25957.0,2.88501766]
[1693517150377,0.105,25958.0,25957.0,2.88309766]
[1693517150581,0.105,25958.0,25957.0,2.88945766]
[1693517150791,0.105,25958.0,25957.0,2.89197766]
[1693517151006,0.105,25958.0,25957.0,3.02343766]
[1693517151206,0.105,25958.0,25957.0,2.89119766]
[1693517151431,0.105,25958.0,25957.0,3.02367766]
[1693517151628,0.105,25958.0,25957.0,3.03339766]
[1693517151848,0.105,25958.0,25957.0,3.03207766]
[1693517152071,0.105,25958.0,25957.0,3.03159766]
[1693517152229,0.105,25958.0,25957.0,3.03279766]
[1693517152424,0.105,25958.0,25957.0,3.03243766]
[1693517152608,0.105,25958.0,25957.0,3.03747766]
[1693517152813,0.105,25958.0,25957.0,3.03243766]
[1693517153013,0.105,25958.0,25957.0,3.03315766]
[1693517153266,0.105,25958.0,25957.0,3.03771766]
[1693517153438,0.105,25958.0,25957.0,3.03675766]
[1693517153635,0.105,25958.0,25957.0,3.03651766]
[1693517153840,0.105,25958.0,25957.0,2.89173766]
[1693517154045,0.105,25958.0,25957.0,2.88477766]
[1693517154244,0.105,25958.0,25957.0,2.77159678]
[1693517154450,0.105,25958.0,25957.0,2.92651678]
[1693517154660,0.105,25958.0,25957.0,2.92111678]
[1693517154877,0.105,25958.0,25957.0,2.92087678]
[1693517155088,0.105,25958.0,25957.0,2.92063678]
[1693517155280,0.105,25958.0,25957.0,2.92039678]
[1693517155503,0.105,25958.0,25957.0,2.92147678]
[1693517155711,0.105,25958.0,25957.0,2.91679678]
[1693517155920,0.105,25958.0,25957.0,2.91979678]
[1693517156160,0.105,25958.0,25957.0,2.91943678]
[1693517156363,0.105,25958.0,25957.0,2.91871678]
[1693517156519,0.02,25958.0,25957.0,2.90923678]
[1693517156717,0.22612286,25961.0,25957.0,2.90635678]
[1693517156974,0.43789945,25961.0,25958.0,0.38708678]